Cogmind - Beta 9.6 @@@ ROGUE MODE // 2020.08.29 @ 14:50:04 Player: Cracklepappy Result: Self-destructed Performance ------------- Evolutions (2) 1000 Regions Visited (5) 1000 Robots Destroyed (49) 245 Value Destroyed (1222) 1222 Prototype IDs (27) 540 Alien Tech Used (0) 0 Bonus (150) 150 TOTAL SCORE: 4157 Bonus ------- Aligned with FarCom 300 Friendly Fire -150 Cogmind --------- Core Integrity 408/550 Matter 300/300 Energy 125/125 System Corruption 0% Temperature Cool (0) Movement Treading (240) Ox4 Location -8/Materials Parts ------- > --- POWER (1) -------- Light Ion Engine > --- PROPULSION (2) --- Light Treads Light Treads > --- UTILITY (6) ------ Humpback Humpback Improved Salvage Targeting Computer Medium Armor Plating > --- WEAPON (2) ------- Autogun Autogun > --- INVENTORY (44) --- Light Ion Engine Light Ion Engine Reinforced Ion Engine Faulty Cooled Deuterium Engine Cooled Deuterium Engine Cooled Deuterium Engine Cooled Deuterium Engine Light Treads Light Treads Potential Leg Potential Leg Flying Fortress v7 Humpback Lightpack 2.0 High-capacity Matter Pod (200) Advanced Visual Processing Unit Experimental Sensor Array Advanced Signal Interpreter Medium Armor Plating Hardened Medium Armor Plating Improved Light Armor Plating Hacking Suite Heavy Laser Heavy Laser Heavy Laser Heavy Laser Heavy Assault Rifle Advanced Assault Cannon Advanced Assault Cannon Advanced Assault Cannon Advanced Assault Cannon Gauss Cannon Gauss Cannon Gauss Cannon Gauss Cannon YI-UF0's Doublenader Mining Laser Peak State ------------ > --- POWER ------------ Ion Engine > --- PROPULSION ------- Light Treads Compact Wheel > --- UTILITY ---------- Humpback Humpback Improved Salvage Targeting Computer Medium Armor Plating > --- WEAPON ----------- Heavy EM Pulse Gun Heavy EM Pulse Gun > --- INVENTORY -------- Light Ion Engine Light Ion Engine Cooled Deuterium Engine Cooled Deuterium Engine Cooled Deuterium Engine Cooled Deuterium Engine Light Treads Potential Leg Potential Leg Flying Fortress v7 Humpback Lightpack 2.0 High-capacity Matter Pod Advanced Visual Processing Unit Experimental Sensor Array Advanced Signal Interpreter Improved Light Armor Plating Hacking Suite Heavy EM Pulse Gun Heavy Laser Heavy Laser Heavy Laser Heavy Laser Autogun Autogun Advanced Assault Cannon Advanced Assault Cannon Advanced Assault Cannon Advanced Assault Cannon Gauss Cannon Gauss Cannon Gauss Cannon Gauss Cannon YI-UF0's Doublenader Mining Laser [Rating: 34] Favorites ----------- Power Ion Engine Engine Ion Engine Propulsion Compact Wheel Treads Light Treads Wheel Compact Wheel Utility Humpback Storage Humpback Processor Improved Salvage Targeting Computer Protection Light Armor Plating Weapon Heavy EM Pulse Gun Energy Gun Heavy EM Pulse Gun Ballistic Gun Light Assault Rifle Launcher Grenade Launcher Special Weapon Mining Laser Build | -11 -10 -10 -10 -9 -8 ------- Run | Scr Mat Min Exi Min Mat Slots Evolved 4 | . . . . . 4 Power . | . . . . . . Propulsion . | . . . . . . Utility 4 | . . . . . 4 Weapon . | . . . . . . Parts Attached 39 | 7 15 . 3 4 10 Power 3 | 1 1 . . . 1 Engine 3 | 1 1 . . . 1 Core . | . . . . . . Reactor . | . . . . . . Propulsion 6 | 2 1 . 1 1 1 Treads 2 | . . . . 1 1 Leg . | . . . . . . Wheel 4 | 2 1 . 1 . . Hover . | . . . . . . Flight . | . . . . . . Utility 13 | 2 4 . 2 . 5 Device . | . . . . . . Storage 9 | 2 4 . 2 . 1 Processor 1 | . . . . . 1 Hackware . | . . . . . . Protection 3 | . . . . . 3 Artifact . | . . . . . . Weapon 17 | 2 9 . . 3 3 Energy Gun 8 | 1 4 . . 2 1 Energy Cannon . | . . . . . . Ballistic Gun 4 | 1 1 . . . 2 Ballistic Cannon . | . . . . . . Launcher 2 | . 1 . . 1 . Special Weapon 3 | . 3 . . . . Impact Weapon . | . . . . . . Slashing Weapon . | . . . . . . Piercing Weapon . | . . . . . . Special Melee Weapon . | . . . . . . Unidentified Prototypes 1 | . . . . 1 . Parts Lost 9 | . 1 . . 2 6 Power 1 | . . . . . 1 Propulsion 3 | . 1 . . 1 1 Utility 1 | . . . . . 1 Weapon 4 | . . . . 1 3 Highest Loss Streak 3 | . 1 . . 1 3 Average Slot Usage (%) 89 | . 94 100 89 83 79 Engine 12 | . 14 14 14 14 8 Treads 4 | . . . . 7 12 Wheel 19 | . 23 28 28 19 5 Storage 22 | . 28 28 18 14 18 Processor 2 | . . . . . 8 Protection 2 | . . . . . 8 Energy Gun 17 | . 7 28 28 28 13 Ballistic Gun 4 | . 11 . . . 3 Launcher 2 | . 7 . . . . Naked Turns . | . . . . . . Heaviest Build 178 | 14 43 43 91 91 178 Greatest Support 40 | 26 26 26 26 26 40 Greatest Overweight (x) 11 | . 2 1 3 5 11 Average Overweight (x) 2 | . . 1 2 4 8 Largest Inventory Capacity 44 | 8 16 16 24 24 44 Average Capacity 23 | 6 12 16 21 24 43 Most Carried 42 | 8 16 16 24 24 42 Average Carried 20 | 4 12 16 20 23 35 Final Capacity 44 | 8 16 16 24 24 44 Final Carried 42 | 8 16 16 24 24 42 Class Distribution -------------------- 53% | Mutant 46% | Hauler-Mutant Dominant Class ---------------- Mutant | -10/Materials Mutant | -10/Mines Hauler-Mutant | -10/Exiles Hauler-Mutant | -9/Mines Hauler-Mutant | -8/Materials Resources | -11 -10 -10 -10 -9 -8 ----------- Run | Scr Mat Min Exi Min Mat Matter Collected 1057 | 270 246 190 20 174 157 Remotely . | . . . . . . Salvage Created 1526 | 71 453 . . 303 699 Parts 105 | 7 40 . . 18 40 Haulers Intercepted . | . . . . . . Recyclers Shooed . | . . . . . . Parts Field Recycled . | . . . . . . Retrieved Matter . | . . . . . . Parts Self-Destructed . | . . . . . . Prevented . | . . . . . . Kills | -11 -10 -10 -10 -9 -8 ------- Run | Scr Mat Min Exi Min Mat Combat Hostiles Destroyed 33 | . 15 . . 8 10 Guns 16 | . 2 . . 7 7 AOE 14 | . 13 . . . 1 Classes Destroyed 11 | 2 6 . . . 3 Worker 3 | . 3 . . . . Builder 3 | . 1 . . . 2 Tunneler 1 | 1 . . . . . Recycler 2 | 1 . . . 1 . Operator 2 | . 2 . . . . Watcher 5 | . 2 . . . 3 Swarmer 10 | . 3 . . 7 . Grunt 17 | . 12 . . . 5 Brawler 1 | . . . . . 1 Sentry 3 | . . . . . 3 Hunter 1 | . . . . . 1 Best Kill Streak 6 | 2 6 . . 4 5 Combat Bots Only 5 | . 5 . . 4 4 Max Kills in Single Turn 3 | 1 3 . . 2 1 Gunslinging 1 | . . . . 1 . Exploded 2 | . 2 . . . 1 Melee . | . . . . . . Uniques/NPCs Destroyed 1 | . . . . 1 . YI-UF0 (-9/Mines) Combat | -11 -10 -10 -10 -9 -8 -------- Run | Scr Mat Min Exi Min Mat Damage Taken 1663 | . 232 . 34 312 1085 Core 210 | . 6 . . 62 142 Absorbed by Shields . | . . . . . . Core Remaining (%) 86 | 100 . . . 72 . Volleys Fired 103 | 4 35 . 4 18 42 Largest 2 | 2 2 . 2 2 2 Hottest 100 | 70 100 . 90 90 90 Shots Fired 184 | 8 56 . 8 36 76 Gun 161 | 8 33 . 8 36 76 Cannon . | . . . . . . Launcher 17 | . 17 . . . . Special 6 | . 6 . . . . Kinetic 48 | 4 26 . . . 18 Thermal 14 | 4 10 . . . . Explosive 17 | . 17 . . . . Electromagnetic 105 | . 3 . 8 36 58 Robot Hit Streak 10 | 5 6 . 3 6 10 Robot Miss Streak 5 | 1 3 . 2 5 2 Penetration Max . | . . . . . . Secondary Targets 4 | . . . . 4 . Max Gunslinging Chain 1 | . . . . 1 . Shots Hit Robots 110 | 6 24 . 4 21 55 Core Hits 80 | 4 38 . 2 13 23 Critical Hits . | . . . . . . Critical Kills . | . . . . . . Critical Parts Destroyed . | . . . . . . Melee Attacks . | . . . . . . Impact . | . . . . . . Slashing . | . . . . . . Piercing . | . . . . . . Sneak Attacks . | . . . . . . Combat Hostiles . | . . . . . . Follow-up Attacks . | . . . . . . Damage Inflicted 2876 | 59 1247 . 5 329 1236 Guns 1374 | 59 204 . 5 295 811 Cannons . | . . . . . . Explosions 1502 | . 1043 . . 34 425 Melee . | . . . . . . Ramming . | . . . . . . Kinetic 294 | 23 102 . . . 169 Thermal 545 | 36 50 . . 34 425 Explosive 1043 | . 1043 . . . . Electromagnetic 994 | . 52 . 5 295 642 Impact . | . . . . . . Slashing . | . . . . . . Piercing . | . . . . . . Highest Corruption 2 | . 2 2 2 2 . Average Corruption 2 | . 2 2 2 2 . Corruption Purged . | . . . . . . Effects 17 | . 8 4 3 2 . Message Errors 10 | . 3 4 2 1 . Heat Flow Errors 4 | . 4 . . . . Energy Discharges 2 | . 1 . . 1 . Data Loss (minor) 1 | . . . 1 . . Overload Shots . | . . . . . . Overflow Damage 35 | . 4 . . . 31 Projectiles . | . . . . . . Explosions 35 | . 4 . . . 31 Melee . | . . . . . . Knockbacks . | . . . . . . Impact . | . . . . . . Kinetic . | . . . . . . Secondary . | . . . . . . Self-Inflicted Damage 163 | . 71 . . . 92 Shots 6 | . 4 . . . 2 Rammed . | . . . . . . Targets Rammed . | . . . . . . Kicked . | . . . . . . Crushed . | . . . . . . Highest Temperature 269 | 60 269 . 120 180 162 Average Temperature 60 | 35 53 . 63 79 56 Received Heat Transfer 432 | . 72 . . . 360 Siege Activations . | . . . . . . Robots Corrupted 3 | . . . . 1 2 Combat Hostiles 3 | . . . . 1 2 Parts Fried 5 | . . . . . 5 Impact Corruptions . | . . . . . . Robots Melted . | . . . . . . Combat Hostiles . | . . . . . . Parts Melted 1 | . . . . . 1 Heat Transferred 722 | 111 111 . . 100 400 Parts Sabotaged . | . . . . . . Parts Stolen . | . . . . . . Parts Stripped . | . . . . . . Power Chain Reactions 6 | . . . . 1 5 Missiles Intercepted . | . . . . . . Alert | -11 -10 -10 -10 -9 -8 ------- Run | Scr Mat Min Exi Min Mat Peak Influence 305 | 10 305 . . 145 198 Average Influence 93 | 4 146 . . 98 99 Maximum Alert Level 1 | . 1 . . . . Low Security (%) 84 | 100 57 100 . 100 100 Level 1 15 | . 42 . . . . Level 2 . | . . . . . . Level 3 . | . . . . . . Level 4 . | . . . . . . Level 5 . | . . . . . . High Security . | . . . . . . Max Security . | . . . . . . Squads Dispatched 5 | . 4 . . . 1 Investigation 4 | . 3 . . . 1 Extermination . | . . . . . . Reinforcement 1 | . 1 . . . . Assault . | . . . . . . Garrison . | . . . . . . Intercept . | . . . . . . Construction Impeded . | . . . . . . Haulers Reinforced . | . . . . . . Stealth | -11 -10 -10 -10 -9 -8 --------- Run | Scr Mat Min Exi Min Mat Distress Signals 2 | . . . . . 2 Communications Jammed . | . . . . . . Distress Signals . | . . . . . . Times Spotted 50 | . 21 . . 10 19 Peak Tracking Total 5 | . 5 . 2 4 4 Tactical Retreats . | . . . . . . Traps | -11 -10 -10 -10 -9 -8 ------- Run | Scr Mat Min Exi Min Mat Traps Triggered 4 | . 3 . . . 1 Indirectly . | . . . . . . Trap Hack Attempts . | . . . . . . Triggered . | . . . . . . Disarmed . | . . . . . . Reprogrammed . | . . . . . . Reused . | . . . . . . Traps Extracted . | . . . . . . Installed . | . . . . . . Triggered 1 | . 1 . . . . Exploded 1 | . . . 1 . . Machines | -11 -10 -10 -10 -9 -8 ---------- Run | Scr Mat Min Exi Min Mat Machines Disabled 5 | . 4 . . . 1 Max in Single Turn 2 | . 2 . . . 1 Garrison Access 1 | . . . . . 1 Machines Sabotaged . | . . . . . . Garrisons Compromised . | . . . . . . Overloaded Fab Kills . | . . . . . . Fab Network Shutdowns . | . . . . . . Hacking | -11 -10 -10 -10 -9 -8 --------- Run | Scr Mat Min Exi Min Mat Machines Accessed 7 | . 5 . 1 . 1 Terminals 5 | . 5 . . . . Fabricators . | . . . . . . Repair Stations . | . . . . . . Recycling Units . | . . . . . . Scanalyzers . | . . . . . . Garrison Access 1 | . . . . . 1 Total Hacks 17 | . 15 . 1 . 1 Successful 10 | . 8 . 1 . 1 Failed 7 | . 7 . . . . Catastrophic 1 | . 1 . . . . Database Lockouts . | . . . . . . Manual 8 | . 7 . 1 . . Terminals 15 | . 15 . . . . Fabricators . | . . . . . . Repair Stations . | . . . . . . Recycling Units . | . . . . . . Scanalyzers . | . . . . . . Garrison Access 1 | . . . . . 1 Terminal Hacks 9 | . 8 . 1 . . Part Schematic 1 | . 1 . . . . Prototype ID Bank 3 | . 3 . . . . Unreport Threat 2 | . 2 . . . . Locate Traps 1 | . 1 . . . . Zone Layout 1 | . 1 . . . . EX-Prototype ID Bank 1 | . . . 1 . . Fabricator Hacks . | . . . . . . Repair Station Hacks . | . . . . . . Recycling Unit Hacks . | . . . . . . Scanalyzer . | . . . . . . Garrison Access Hacks 1 | . . . . . 1 Seal Access 1 | . . . . . 1 Unauthorized Hacks . | . . . . . . Terminals . | . . . . . . Fabricators . | . . . . . . Repair Stations . | . . . . . . Recycling Units . | . . . . . . Scanalyzers . | . . . . . . Garrison Access . | . . . . . . Data Cores Recovered 1 | . 1 . . . . Used 1 | . 1 . . . . Hacking Detections 5 | . 5 . . . . Full Trace Events . | . . . . . . Feedback Events . | . . . . . . Feedback Blocked . | . . . . . . Robot Schematics Acquired . | . . . . . . Robots Built . | . . . . . . Matter . | . . . . . . Time . | . . . . . . Total Robot Build Rating . | . . . . . . Part Schematics Acquired 1 | . 1 . . . . Parts Built . | . . . . . . Matter . | . . . . . . Time . | . . . . . . Total Part Build Rating . | . . . . . . Parts Repaired . | . . . . . . Time . | . . . . . . Parts Recycled . | . . . . . . Recycled Matter . | . . . . . . Retrieved Matter . | . . . . . . Retrieved Components . | . . . . . . Parts Scanalyzed . | . . . . . . Part Schematics Acquired . | . . . . . . Parts Damaged . | . . . . . . Bothacking | -11 -10 -10 -10 -9 -8 ------------ Run | Scr Mat Min Exi Min Mat Used RIF Installer . | . . . . . . Robots Hacked . | . . . . . . Non-combat . | . . . . . . Combat . | . . . . . . Robot Hacks Applied . | . . . . . . Relay Couplers Released . | . . . . . . Robots Rewired . | . . . . . . Allies Hacked . | . . . . . . Hacks Repelled . | . . . . . . Allies | -11 -10 -10 -10 -9 -8 -------- Run | Scr Mat Min Exi Min Mat Total Allies . | . . . . . . Largest Group . | . . . . . . Highest-Rated Group . | . . . . . . Highest-Rated Ally . | . . . . . . Total Orders . | . . . . . . Ally Attacks . | . . . . . . Total Damage . | . . . . . . Kills . | . . . . . . Allies Corrupted . | . . . . . . Allies Melted . | . . . . . . Intel | -11 -10 -10 -10 -9 -8 ------- Run | Scr Mat Min Exi Min Mat Robot Analysis Total . | . . . . . . Derelict Logs Recovered 3 | . . 2 . 1 . Drone Launches . | . . . . . . Drone Recoveries . | . . . . . . Exploration | -11 -10 -10 -10 -9 -8 ------------- Run | Scr Mat Min Exi Min Mat Turns Passed 2956 | 90 884 481 472 256 773 Spaces Moved 2070 | 68 732 480 375 138 277 Core 3 | 3 . . . . . Treads 88 | . . . . . 88 Legs . | . . . . . . Wheels 1979 | 65 732 480 375 138 189 Hover . | . . . . . . Flight . | . . . . . . Fastest Speed 50 | 50 90 100 90 120 200 Average Speed 119 | 87 99 100 114 138 214 Slowest Speed 240 | 90 120 100 120 150 240 Overloaded Moves . | . . . . . . Propulsion Burnouts . | . . . . . . Robots Hopped . | . . . . . . Cave-ins Triggered . | . . . . . . Exploration Rate (%) 57 | 6 98 89 70 54 30 Regions Visited 5 Branch Regions 3 Pre-discovered Areas 2 | . . 1 . 1 . Known Exits Taken . | . . . . . . Unknown Exits Taken 5 | 1 1 1 1 1 . Scrap Searched 2 | . . 1 . 1 . Spaces Dug 10 | . 10 . . . . Terrain Destroyed 147 | . 126 . . 3 18 Melee . | . . . . . . Projectile 6 | . 6 . . . . AOE 141 | . 120 . . 3 18 Actions | -11 -10 -10 -10 -9 -8 --------- Run | Scr Mat Min Exi Min Mat Total 2365 | 87 829 481 416 168 384 Wait 36 | . 7 2 . 1 26 Move 2065 | 67 731 479 374 137 277 Hop . | . . . . . . Pick Up 90 | 9 24 . 24 5 28 Fast Attach 8 | 6 . . 1 . 1 Attach 15 | 1 3 . . 2 9 Detach . | . . . . . . Swap 16 | . 12 . 2 2 . Drop 32 | . 17 . 11 3 1 Fire 103 | 4 35 . 4 18 42 Melee . | . . . . . . Ram . | . . . . . . Kick . | . . . . . . Crush . | . . . . . . Escape Stasis . | . . . . . . Rewire . | . . . . . . Trap . | . . . . . . Miscellaneous . | . . . . . . Route ------- -11/Scrapyard -10/Materials (discovered 4 exits: *Mat x3 / [*Min]) -10/Mines (discovered 3 exits: *Mat x2 / *Exi) -10/Exiles (discovered 2 exits: [*Min x2]) -9/Mines (discovered 2 exits: *Mat x2) -8/Materials (discovered 1 exit: [*Fac]) History --------- Turn | Location | Event 14 | -11/Scrapyard | Discovered new exit (range 15) 91 | -11/Scrapyard | Entered Materials 107 | -10/Materials | Discovered new exit (range 8) 220 | -10/Materials | Discovered new exit (range 6) 302 | -10/Materials | Build established: Mutant 367 | -10/Materials | Discovered new exit (range 16) 707 | -10/Materials | Discovered new exit (range 5) 975 | -10/Materials | Entered Mines 1067 | -10/Mines | Met a Derelict bent on vengeance 1111 | -10/Mines | Deemed a non-threat by the Exiles lab entrance 1111 | -10/Mines | Discovered new exit (range 5) 1165 | -10/Mines | Discovered new exit (range 5) 1230 | -10/Mines | Identified exit to Materials 1273 | -10/Mines | Learned location of Zion (-7) 1456 | -10/Mines | Entered Exiles 1469 | -10/Exiles | Discovered new exit (range 15) 1479 | -10/Exiles | Met 8R-AWN 1495 | -10/Exiles | Met EX-HEX 1561 | -10/Exiles | Met EX-DEC 1720 | -10/Exiles | Met EX-BIN 1738 | -10/Exiles | Aligned with FarCom system 1739 | -10/Exiles | Given EX-Vault access code 1767 | -10/Exiles | Opened EX-Vault 1777 | -10/Exiles | Found Flying Fortress v7 1786 | -10/Exiles | Found Lightpack 2.0 1790 | -10/Exiles | Found Potential Leg 1792 | -10/Exiles | Found Potential Leg 1816 | -10/Exiles | Warned to stay clear of 0b10 Research branches 1826 | -10/Exiles | Exiles lab attacked by MAIN.C 1901 | -10/Exiles | Discovered new exit (range 10) 1904 | -10/Exiles | Attacked by the Exiles 1906 | -10/Exiles | Build established: Hauler-Mutant 1928 | -10/Exiles | Stole three prototypes: Potential Leg, Flying Fortress v7, Lightpack 2.0 1928 | -10/Exiles | Entered Mines 2030 | -9/Mines | Destroyed YI-UF0 2042 | -9/Mines | Found Prototype Launcher 2043 | -9/Mines | Identified YI-UF0's Doublenader 2122 | -9/Mines | Discovered new exit (range 6) 2152 | -9/Mines | Discovered new exit (range 14) 2166 | -9/Mines | Found a damaged Exp. Sensor Array with a note attached 2171 | -9/Mines | Found Prototype Device 2184 | -9/Mines | Entered Materials 2184 | -8/Materials | Evolved 4 slots: Utility x4 2699 | -8/Materials | Discovered new exit (range 8) 2827 | -8/Materials | Lost 3 parts (1p2w) 2957 | -8/Materials | Self-destructed Last Messages --------------- 02819_ U-05 Engineer lays Concrete. 02819_ K-01 Serf collects debris. 02820_ U-05 Engineer lays Concrete. 02821_ K-01 Serf collects debris. 02822_ U-05 Engineer lays Concrete. 02823_ Acquired Lgt. Treads. 02824_ K-01 Serf collects debris. 02828_ U-05 Engineer lays Concrete. 02828_ K-01 Serf collects debris. 02829_ Acquired Lgt. Treads. 02832_ Acquired Rnf. Ion Engine. 02832_ K-01 Serf collects debris. 02840_ Acquired Hvy. Assault Rifle. 02841_ K-01 Serf collects debris. 02849_ Acquired 8 matter. 02851_ W-25 Informer destroyed. 02852_ Acquired 8 matter. 02861_ Acquired Lgt. Ion Engine. 02871_ K-01 Serf collects debris. 02889_ Acquired Hrd. Medium Armor Plating. Map ----- +----------------------------------------------------+ | #????? | | = #????? | | [%! #????? | | ###+##### !%= ""#### #????? | | ## #?#! ! !####### ####### | | ## #?#! !##] # # # | | ## #?##!!!!### # #[[ !# | | ## "" #??######?# + %/ * # | | ## "G #?????????# # #!%[" # | | ## "" #?????????# + %# R" # | | ## #?????????# # # """ # | | ########?????????# # # # | | #????????????????###### ####### | | #?????????????????????# # # | | #?????????????????????# # "" # | | #?????????????????????# r# "T # | | #?????????????????????# + "" # | | #?????????????????????# % # # | | #?????????????????????# # # | | ?????????????????????# ####### | | ??????????????????????#%#+#?????? | | ?????????????????????????# #???????? | | ??????????????????+####### #???????? | | ????????????????# #???????? | | ??????????? #### #???????? | | ???????????????????????# @ #???????? | | ???????????????????????# #???????? | | ???????????????????????# #???????? | | ???????????????????????# #???????? | | ???????????????????????# #???????? | | ???????????????????????# #???????? | | ???????????????????????# #???????? | | ???????????????????????# #???????? | | ???????????????????????# #???????? | | ???????????????????????# #???????? | | ???????????????????????# #???????? | | ???????????????????????# #???????? | | ??????????????????????? ???????? | | ??????????????????????? Y ???????? | | ??????????????????????? ???????? | | ??????????????????????? g ???????? | | ???????????????????????????????????? | | ???????????????????????????????????? | | ???????????????????????????????????? | | ???????????????????????????????????? | | ???????????????????????????????????? | | ???????????????????????????????????? | | ???????????????????????????????????? | | ???????????????????????????????????? | | ???????????????????????????????????? | +----------------------------------------------------+ Best States ------------- Heat Dissipation 31 Energy Generation 10 Energy Capacity 250 Matter Stores 300 Matter Capacity 300 Sight Range 16 Terrain Scan Density 10 Armor Coverage 225 Evasion (%) 42 Recoil Reduction 2 Salvage Targeting 2 Item Schematics ----------------- Hcp. Storage Unit | -10/Materials | Hacked Robot Schematics ------------------ None Fabricated ------------ Nothing Alien Tech Used ----------------- None Achievements -------------- None Challenges ------------ None Game ------ Seed CombatStasisInsulator Manual? 0 Play Time 00:32:18 Cumulative 153.9 hours Start 2020.08.29 @ 03:48:47 End 2020.08.29 @ 14:50:04 Sessions 4 Manual Loads 0 Difficulty Rogue Special Mode None Game No. 186 Rogue 186 Adventurer 0 Explorer 0 Win Type - Total 2 Types 2/0/0/0/0/0/0 Lore% 61 Gallery% 71 Achievement% 53 Wizard Run 0 Options --------- ASCII 0 Keyboard 0 Movement Numpad Keybinds 0 Fullscreen 2 Font 24/Smallcaps Map View 76x50 Tactical HUD 1 Map Filters NONE Filters NONE Steam 1 RUN: eeb5f7ef-9226-4c0e-9c12-cce76dfe6106